bitfinex/quotes_BTCUSD_20260221
["timestamp","ask_amount","ask_price","bid_price","bid_amount"]
[1771674236135,0.07333725,68179.0,68173.0,0.00028856]
[1771674237245,0.16535895,68183.0,68177.0,0.0733384]
[1771674237503,0.0733309,68186.0,68176.0,0.07333924]
[1771674237684,0.07333123,68184.0,68176.0,0.07333924]
[1771674237888,0.07333015,68185.0,68177.0,0.07333848]
[1771674238048,0.07333103,68184.0,68175.0,0.09607121]
[1771674238258,0.07333103,68184.0,68176.0,0.07333937]
[1771674239180,0.07333216,68183.0,68176.0,0.07333937]
[1771674239345,0.07333103,68184.0,68175.0,0.02273113]
[1771674240083,0.07333206,68183.0,68176.0,0.07333929]
[1771674240299,0.07333121,68184.0,68176.0,0.07333929]
[1771674240507,0.07333121,68184.0,68177.0,0.07333839]
[1771674240658,0.07332951,68186.0,68175.0,0.02273113]
[1771674241005,0.07333459,68181.0,68173.0,0.07362944]
[1771674241705,0.07333459,68181.0,68174.0,0.0733417]
[1771674242470,0.07333336,68182.0,68174.0,0.0733417]
[1771674246992,0.07353336,68182.0,68174.0,0.0733417]
[1771674247697,0.07333423,68181.0,68173.0,0.07363061]
[1771674248006,0.0002,68182.0,68175.0,0.07334041]
[1771674248791,0.0002,68182.0,68172.0,0.00022]
[1771674249052,0.07333645,68179.0,68172.0,0.00030572]
[1771674249612,0.02253519,68181.0,68172.0,0.00030572]
[1771674249872,0.0733393,68177.0,68172.0,0.00030572]
[1771674250074,0.07334014,68176.0,68172.0,0.00030572]
[1771674250643,0.07334072,68175.0,68172.0,0.00030572]
[1771674252275,0.07334195,68174.0,68172.0,0.00030572]
[1771674252481,0.07333942,68177.0,68172.0,0.00030572]
[1771674252676,0.07333957,68178.0,68172.0,0.00030572]
[1771674253273,0.07333851,68177.0,68172.0,0.00030572]
[1771674253471,0.07333851,68177.0,68172.0,0.00016082]
[1771674254900,0.02335925,68180.0,68172.0,0.00016082]
[1771674254901,0.07333636,68179.0,68172.0,0.00016082]
[1771674255097,0.07333766,68178.0,68172.0,0.00016082]
[1771674255799,0.07333861,68177.0,68172.0,0.00016082]
[1771674256332,0.07333851,68177.0,68172.0,0.00016082]
[1771674262711,0.0733396,68176.0,68172.0,0.00016082]
[1771674263774,0.07333766,68178.0,68172.0,0.00016082]
[1771674263976,0.02333546,68180.0,68173.0,0.02496498]
[1771674264175,0.0002,68182.0,68173.0,0.02496498]
[1771674265334,0.07333421,68181.0,68173.0,0.02496498]
[1771674265738,0.07333532,68180.0,68173.0,0.02496498]
[1771674267233,0.0002,68177.0,68173.0,0.02496498]
[1771674268254,0.07353392,68182.0,68173.0,0.07334278]
[1771674268551,0.07333548,68180.0,68172.0,0.07350457]
[1771674268770,0.07333655,68179.0,68172.0,0.07321478]
[1771674269754,0.07333565,68180.0,68172.0,0.07321478]
[1771674269968,0.07333642,68179.0,68172.0,0.07321478]
[1771674270159,0.07333801,68178.0,68171.0,0.0003433]
[1771674270373,0.07333801,68178.0,68171.0,0.00046027]
[1771674270558,0.07333801,68178.0,68171.0,0.07380515]
[1771674273217,0.02317666,68182.0,68160.0,0.00016]
[1771674273400,0.02313666,68170.0,68160.0,0.07340751]
[1771674273608,0.07334782,68169.0,68161.0,0.07335573]
[1771674273925,0.0733484,68168.0,68160.0,0.07340751]
[1771674274127,0.0733484,68168.0,68164.0,0.00022]
[1771674274478,0.07334782,68169.0,68164.0,0.00022]
[1771674274860,0.02335925,68169.0,68160.0,5.141e-05]
[1771674275063,0.07335038,68166.0,68160.0,5.141e-05]
[1771674275699,0.07335183,68165.0,68160.0,5.141e-05]
[1771674276110,0.07335291,68164.0,68160.0,5.141e-05]
[1771674278511,0.07335169,68165.0,68160.0,5.141e-05]
[1771674280710,0.07335169,68165.0,68160.0,0.00027141]
[1771674281374,0.0733525,68164.0,68160.0,0.00027141]
[1771674281731,0.07335409,68163.0,68160.0,0.00027141]
[1771674283552,0.07335213,68165.0,68160.0,0.00027141]
[1771674285200,0.07334944,68167.0,68160.0,0.00027141]
[1771674285583,0.07335093,68166.0,68160.0,0.00027141]
[1771674285731,0.07335228,68165.0,68160.0,0.00027141]
[1771674286523,0.07335448,68163.0,68160.0,0.00027141]
[1771674286649,0.02567099,68157.0,68156.0,0.07336098]
[1771674286858,0.0257879,68157.0,68156.0,0.07336098]
[1771674287196,0.07335338,68164.0,68156.0,0.07336098]
[1771674287786,0.07335338,68164.0,68160.0,0.00022]
[1771674293712,0.07335338,68164.0,68160.0,0.00013532]
[1771674295228,0.07355338,68164.0,68160.0,0.00013532]
[1771674296302,0.07335384,68163.0,68160.0,0.00013532]
[1771674297709,0.0002,68164.0,68160.0,0.00013532]
[1771674297905,0.0002,68164.0,68150.0,1.90023632]
[1771674298120,0.0002,68164.0,68151.0,0.02]
[1771674298121,0.02297666,68160.0,68151.0,0.02]
[1771674298356,0.073363,68155.0,68151.0,0.02]
[1771674298538,0.02297666,68160.0,68150.0,0.94720082]
[1771674298539,0.29343153,68159.0,68150.0,0.94720082]
[1771674298734,0.07336246,68155.0,68150.0,0.94720082]
[1771674299101,0.02336228,68155.0,68150.0,0.94720082]
[1771674299369,0.02336323,68155.0,68150.0,0.97117768]
[1771674299576,0.07336323,68156.0,68150.0,0.97117768]
[1771674299783,0.07336332,68154.0,68150.0,0.97074334]
[1771674299923,0.07336617,68152.0,68150.0,0.97074334]
[1771674300161,0.07336649,68151.0,68150.0,0.9467221]
[1771674300372,0.07336649,68151.0,68150.0,0.97069896]
[1771674300982,0.07336649,68151.0,68150.0,0.23685206]
[1771674301440,0.07336649,68151.0,68150.0,0.05700928]
[1771674301655,0.07336649,68151.0,68150.0,0.0202014]
[1771674301831,0.07336649,68151.0,68150.0,0.01050985]
[1771674302207,0.07336649,68151.0,68150.0,1e-08]
[1771674303628,0.29345618,68154.0,68140.0,0.17636]
[1771674303833,0.06671583,68160.0,68141.0,0.00989905]
[1771674303834,0.0733719,68146.0,68141.0,0.00989905]
[1771674304854,0.07337297,68145.0,68141.0,0.00989905]
[1771674305376,0.0733719,68146.0,68141.0,0.00989905]
[1771674306570,0.02787589,68146.0,68141.0,0.00989905]
[1771674307723,0.07337154,68147.0,68141.0,0.00989905]
[1771674308576,0.07337154,68147.0,68141.0,0.01011905]
[1771674309762,0.07337154,68147.0,68141.0,0.00022]
[1771674310786,0.07337311,68145.0,68141.0,0.00022]
[1771674310989,0.07337224,68146.0,68141.0,0.00022]
[1771674316946,0.07337283,68147.0,68141.0,0.00022]
[1771674317151,0.07337293,68146.0,68141.0,0.00022]
[1771674320529,0.07337283,68147.0,68141.0,0.00022]
[1771674320837,0.07337087,68147.0,68141.0,0.00022]
[1771674321433,0.0002,68146.0,68141.0,0.00022]
[1771674322076,0.07357206,68146.0,68141.0,0.00022]
[1771674322267,0.07357206,68146.0,68141.0,0.01011905]
[1771674325473,0.02437275,68145.0,68141.0,0.00022]
[1771674325695,0.07337618,68142.0,68141.0,0.00022]
[1771674326483,0.04950585,68142.0,68141.0,0.00022]
[1771674328140,0.04950585,68142.0,68141.0,0.00122]
[1771674328335,0.04950585,68142.0,68141.0,0.00022]
[1771674335406,0.00016,68160.0,68142.0,0.00989905]
[1771674335613,0.00016,68160.0,68141.0,0.00022]
[1771674335614,0.00016,68160.0,68150.0,0.16555859]
[1771674335995,0.00016,68160.0,68151.0,0.00975431]
[1771674336126,0.07351691,68160.0,68151.0,0.00975431]
[1771674336310,0.07351691,68160.0,68153.0,0.00975431]
[1771674336509,0.00016,68160.0,68153.0,0.07336347]
[1771674336711,0.00016,68160.0,68150.0,0.16555859]
[1771674336712,0.00116,68160.0,68156.0,0.00975431]
[1771674336959,1e-08,68160.0,68159.0,0.07335788]
[1771674337136,0.0001233,68161.0,68160.0,0.08311111]
[1771674339982,0.0001233,68161.0,68160.0,0.00975431]
[1771674341581,0.0003233,68161.0,68160.0,0.00975431]
[1771674341963,0.0003233,68161.0,68160.0,0.08311111]
[1771674342168,0.0003233,68161.0,68160.0,0.00975431]
[1771674342621,0.0001233,68168.0,68164.0,0.07335172]
[1771674342916,0.0001233,68168.0,68164.0,0.08310603]
[1771674343267,0.0001233,68168.0,68165.0,0.00975431]
[1771674343720,0.00051359,68168.0,68165.0,0.00975431]
[1771674344628,0.00051359,68168.0,68165.0,0.08310559]
[1771674345347,0.00051359,68168.0,68166.0,0.08310396]
[1771674347095,0.00051359,68168.0,68151.0,0.03744309]
[1771674347096,0.00051359,68168.0,68150.0,0.00016]
[1771674347285,0.02284517,68159.0,68150.0,0.00016]
[1771674347480,0.02284517,68155.0,68150.0,0.00016]
[1771674347882,0.07336549,68152.0,68150.0,0.00016]
[1771674348089,0.07336676,68151.0,68147.0,0.1762]
[1771674348486,0.09621193,68151.0,68147.0,0.1762]
[1771674348841,0.07336757,68150.0,68147.0,0.1762]
[1771674349084,0.09621274,68150.0,68147.0,0.1762]
[1771674349798,0.07336866,68149.0,68147.0,0.1762]
[1771674350102,0.02284517,68148.0,68147.0,0.1762]
[1771674350651,0.07336782,68150.0,68147.0,0.1762]
[1771674350858,0.09621299,68150.0,68147.0,0.1762]
[1771674352714,0.09621299,68150.0,68147.0,0.17591051]
[1771674360550,0.09621489,68148.0,68147.0,0.15234341]
[1771674360759,0.02284517,68152.0,68144.0,0.0001233]
[1771674360954,0.07336434,68153.0,68144.0,0.0001233]
[1771674360955,0.09621812,68145.0,68144.0,0.0001233]
[1771674362129,0.09621812,68145.0,68144.0,0.00024021]
[1771674363097,0.07337884,68140.0,68137.0,0.0001233]
[1771674363297,0.02284517,68139.0,68138.0,0.18852]
[1771674363676,0.02284517,68139.0,68138.0,0.18428303]
[1771674363850,0.09622458,68139.0,68138.0,0.18428303]
[1771674364048,0.02284517,68139.0,68138.0,0.18428303]
[1771674364247,0.02284517,68141.0,68138.0,0.18428303]
[1771674366367,0.09622458,68139.0,68138.0,0.18386926]
[1771674366582,0.02284517,68139.0,68138.0,0.18386926]
[1771674366837,0.09622458,68139.0,68138.0,0.18386926]
[1771674367015,0.09622566,68138.0,68137.0,0.0001233]
[1771674368017,0.0235872,68136.0,68134.0,0.00022]
[1771674368315,0.07338156,68137.0,68134.0,0.00022]
[1771674369099,0.09696876,68137.0,68134.0,0.00022]
[1771674369309,0.07338156,68137.0,68134.0,0.00022]
[1771674369517,0.02369067,68136.0,68134.0,0.00022]
[1771674370121,0.07338262,68137.0,68131.0,0.00022]
[1771674370329,0.02984757,68144.0,68131.0,0.00022]
[1771674370330,0.07338286,68136.0,68131.0,0.00022]
[1771674370529,0.02369067,68135.0,68131.0,0.00022]
[1771674371019,0.07338178,68137.0,68131.0,0.00022]
[1771674371430,0.02369067,68135.0,68131.0,0.00022]
[1771674371974,0.02369067,68135.0,68130.0,0.0002833]
[1771674372971,0.02369067,68135.0,68130.0,0.07367215]
[1771674373185,0.02369067,68135.0,68130.0,0.0002833]
[1771674373478,0.07337804,68141.0,68131.0,0.07338799]
[1771674373905,0.07337804,68141.0,68130.0,0.07367215]
[1771674374589,0.02299861,68140.0,68132.0,0.07338622]
[1771674375138,0.12006834,68140.0,68132.0,0.07338622]
[1771674376181,0.09637767,68140.0,68132.0,0.07338622]
[1771674376379,0.02369067,68139.0,68132.0,0.07338622]
[1771674380548,0.0002,68148.0,68130.0,0.0005033]
[1771674380744,0.0002,68148.0,68138.0,0.03086743]
[1771674380890,0.0002,68148.0,68140.0,0.07337816]
[1771674381516,0.0002,68148.0,68142.0,0.07337604]
[1771674382487,0.05296005,68152.0,68143.0,0.10982355]
[1771674382665,0.07336756,68151.0,68144.0,0.10982355]
[1771674382872,0.07336756,68151.0,68145.0,0.10982355]
[1771674383093,0.00016,68150.0,68138.0,0.31982969]
[1771674383305,0.00016,68150.0,68142.0,0.07337537]
[1771674383631,0.00016,68150.0,68148.0,0.14644987]
[1771674383930,0.02385067,68150.0,68148.0,0.03278353]
[1771674384127,0.09721834,68150.0,68148.0,0.03278353]
[1771674384346,0.09721834,68150.0,68142.0,0.07337537]
[1771674384966,0.02385067,68150.0,68145.0,0.07337263]
[1771674385105,0.0001233,68154.0,68149.0,0.07336864]
[1771674385910,0.0001233,68154.0,68148.0,0.07336947]
[1771674386288,0.0001233,68154.0,68144.0,0.07337403]
[1771674386503,0.0001233,68154.0,68149.0,0.07336835]
[1771674386722,0.0001233,68154.0,68149.0,0.21986131]
[1771674387177,0.0001233,68154.0,68149.0,0.14649296]
[1771674387358,0.0001233,68154.0,68148.0,0.07336937]
[1771674387359,0.0001233,68154.0,68150.0,0.14649296]
[1771674388964,0.0001233,68154.0,68140.0,0.0541467]
[1771674389171,0.07336498,68153.0,68145.0,0.07337225]
[1771674390473,0.07336448,68153.0,68142.0,0.0733756]
[1771674390772,0.07336448,68153.0,68140.0,0.0541467]
[1771674390948,0.07336448,68153.0,68145.0,0.07337244]
[1771674393684,0.07336448,68153.0,68146.0,0.07337177]
[1771674393893,0.02401397,68154.0,68148.0,0.07336879]
[1771674394084,0.02401397,68154.0,68147.0,0.07337079]
[1771674397586,0.0003233,68154.0,68149.0,0.07336797]
[1771674397766,0.07336027,68157.0,68149.0,0.07336797]
[1771674397925,0.07375063,68157.0,68149.0,0.07336797]
[1771674398141,0.00039036,68157.0,68147.0,0.07336998]
[1771674398348,0.07336293,68155.0,68147.0,0.07336998]
[1771674398758,0.0002,68154.0,68147.0,0.07336998]
[1771674404193,0.07356336,68154.0,68146.0,0.07337151]
[1771674405547,0.07356336,68154.0,68147.0,0.00022]
[1771674407146,0.09732735,68154.0,68147.0,0.00022]
[1771674422099,0.07356336,68154.0,68147.0,0.00022]
[1771674422306,0.0002,68154.0,68147.0,0.07359068]
[1771674423313,0.0002,68154.0,68149.0,0.07336799]
[1771674427135,0.0002,68154.0,68148.0,0.0733695]
[1771674428143,0.0002,68154.0,68147.0,0.00022]
[1771674428383,0.07356347,68154.0,68147.0,0.07359075]
[1771674428879,0.0002,68154.0,68147.0,0.07359075]
[1771674436154,0.00039036,68157.0,68147.0,0.00022]
[1771674436359,0.00016,68160.0,68151.0,0.02479869]
[1771674436584,0.00027445,68160.0,68152.0,0.03358758]
[1771674436783,0.00027445,68160.0,68151.0,0.02479869]
[1771674437154,0.0736313,68160.0,68152.0,0.07336512]
[1771674437972,0.00027445,68160.0,68150.0,0.05838627]
[1771674438163,0.00027445,68160.0,68152.0,0.0733644]
[1771674439068,0.00027445,68160.0,68152.0,0.07321971]
[1771674439235,0.07363147,68160.0,68150.0,0.131753]
[1771674439432,0.07335877,68159.0,68150.0,0.131753]
[1771674439639,0.07335877,68159.0,68151.0,0.07336628]
[1771674446247,0.07335906,68158.0,68151.0,0.07336628]
[1771674446626,0.07335906,68158.0,68150.0,0.02479869]
[1771674446627,0.00047445,68160.0,68149.0,0.00022]
[1771674446844,0.07336151,68156.0,68149.0,0.00022]
[1771674447244,0.07335962,68158.0,68149.0,0.00022]
[1771674447486,0.07335852,68159.0,68149.0,0.00022]
[1771674447777,0.07335852,68159.0,68150.0,0.07336744]
[1771674447962,0.07335852,68159.0,68151.0,0.07336616]
[1771674448263,0.07383167,68160.0,68151.0,0.07336616]
[1771674448463,0.07335808,68159.0,68151.0,0.07322147]
[1771674449090,0.07335808,68159.0,68151.0,0.07344147]
[1771674449218,0.07355808,68159.0,68151.0,0.07344147]
[1771674450524,0.07336062,68157.0,68149.0,0.03380758]
[1771674450724,0.07336213,68156.0,68149.0,0.03380758]
[1771674450971,0.07336213,68156.0,68149.0,0.00022]
[1771674452917,0.0002,68159.0,68149.0,0.00022]
[1771674453120,0.07355824,68159.0,68151.0,0.0733662]
[1771674455134,0.07336127,68156.0,68149.0,0.07358824]
[1771674458026,0.07336037,68157.0,68149.0,0.07358824]
[1771674463901,0.0002,68159.0,68153.0,0.07336345]
[1771674467154,0.0003233,68168.0,68150.0,0.00016]
[1771674467299,0.00039196,68168.0,68150.0,0.00016]
[1771674467500,0.00039196,68168.0,68162.0,0.07335454]
[1771674467719,0.00039196,68168.0,68163.0,0.07335352]
[1771674468052,0.17624,68169.0,68165.0,0.0586617]
[1771674468212,0.001,68168.0,68163.0,0.07335334]
[1771674468410,0.00016,68170.0,68164.0,0.02480224]
[1771674469413,0.00016,68170.0,68164.0,0.08346609]
[1771674470129,0.00016,68170.0,68164.0,0.0834663]
[1771674470777,0.00016,68170.0,68165.0,0.06759754]
[1771674471102,0.07334296,68173.0,68165.0,0.09239978]
[1771674471255,0.0733422,68174.0,68165.0,0.06759754]
[1771674471454,0.0002,68168.0,68165.0,0.09239978]
[1771674471983,0.0002,68168.0,68166.0,1e-08]
[1771674473085,0.0002,68168.0,68167.0,0.05866085]
[1771674473387,0.0002,68168.0,68166.0,0.07334953]
[1771674474214,0.0002,68168.0,68167.0,0.07334927]
[1771674474414,0.0002,68168.0,68167.0,0.05866085]
[1771674474685,0.0002,68168.0,68166.0,0.07334953]
[1771674476339,0.0002,68168.0,68167.0,0.06759457]
[1771674478020,0.07346485,68175.0,68170.0,0.07334504]
[1771674478021,0.0001233,68175.0,68170.0,0.07334504]
[1771674478239,0.03588374,68175.0,68170.0,0.07334604]
[1771674478563,0.03588374,68175.0,68167.0,0.07334915]
[1771674479266,0.03588374,68175.0,68169.0,0.07334647]
[1771674479564,0.03588374,68175.0,68168.0,0.07334717]
[1771674479711,0.03588374,68175.0,68169.0,0.07334688]
[1771674479917,0.03588374,68175.0,68168.0,0.07334717]
[1771674480141,0.03588374,68175.0,68170.0,0.07334516]
[1771674480337,0.0001233,68175.0,68171.0,0.07334495]
[1771674480737,0.0001233,68175.0,68174.0,0.07334174]
[1771674481111,0.0002,68177.0,68176.0,0.07333959]
[1771674481112,1e-08,68177.0,68176.0,0.07333959]
[1771674481454,1e-08,68178.0,68177.0,0.07333851]
[1771674482065,0.00016,68180.0,68166.0,1e-08]
[1771674482318,0.03548674,68177.0,68166.0,1e-08]
[1771674482515,0.0234328,68176.0,68166.0,1e-08]
[1771674482723,0.09677261,68176.0,68167.0,0.07334825]
[1771674483080,0.07333981,68176.0,68168.0,0.07334804]
[1771674483274,0.07333926,68177.0,68168.0,0.07334804]
[1771674483687,0.07333926,68177.0,68169.0,0.07334696]
[1771674485990,0.0002,68178.0,68170.0,0.07334562]
[1771674487532,0.07353756,68178.0,68170.0,0.07334562]
[1771674491306,0.07353756,68178.0,68168.0,0.07334807]
[1771674492018,0.07333973,68176.0,68168.0,0.07334807]
[1771674492918,0.07333973,68176.0,68169.0,0.07334706]
[1771674493975,0.07353756,68178.0,68152.0,0.02433607]
[1771674493976,0.00016,68170.0,68152.0,0.02433607]
[1771674494142,0.02451289,68166.0,68159.0,0.07335695]
[1771674494967,0.02451289,68166.0,68160.0,0.0733568]
[1771674495986,0.02451289,68166.0,68160.0,0.07321413]
[1771674497963,0.02451289,68166.0,68161.0,0.00022]
[1771674498175,0.02451289,68166.0,68159.0,0.07335754]
[1771674500808,0.02451289,68166.0,68160.0,0.07335678]
[1771674504620,0.02451289,68166.0,68160.0,0.07357678]
[1771674508136,0.02313553,68170.0,68162.0,0.07335456]
[1771674508435,0.09648233,68170.0,68162.0,0.07335456]
[1771674509057,0.12099522,68170.0,68162.0,0.07335456]
[1771674509402,0.07334712,68169.0,68162.0,0.07335456]
[1771674513707,0.07335064,68166.0,68160.0,0.00022]
[1771674513899,0.09786353,68166.0,68160.0,0.00022]
[1771674514474,0.02451289,68166.0,68160.0,0.00022]
[1771674514877,0.02451289,68164.0,68154.0,0.00022]
[1771674515079,0.02451289,68161.0,68154.0,0.00022]
[1771674516393,0.02451289,68161.0,68154.0,0.07358285]
[1771674516999,0.02451289,68161.0,68153.0,0.07358426]
[1771674517000,0.07335651,68161.0,68153.0,0.07358426]
[1771674517204,0.02451289,68158.0,68151.0,0.0003433]
[1771674517373,0.02462984,68158.0,68151.0,0.0003433]
[1771674518588,0.02462984,68158.0,68151.0,0.07370975]
[1771674521360,0.02332033,68157.0,68147.0,0.07359005]
[1771674521515,0.07336404,68154.0,68146.0,0.07359103]
[1771674521683,0.07336187,68156.0,68148.0,0.07336962]
[1771674522014,0.02332033,68154.0,68147.0,0.07337042]
[1771674522615,0.02332033,68154.0,68147.0,0.07037267]
[1771674522991,0.07336656,68151.0,68144.0,0.0003433]
[1771674523192,0.02332033,68150.0,68144.0,0.0003433]
[1771674523592,0.02332033,68150.0,68144.0,0.07371729]
[1771674524450,0.02332033,68150.0,68145.0,0.07337285]
[1771674525014,0.02332033,68150.0,68144.0,0.07371729]
[1771674525649,0.02332033,68150.0,68146.0,0.07337184]
[1771674525846,0.02297553,68154.0,68147.0,0.0733704]
[1771674526066,0.07336124,68156.0,68148.0,0.07336888]
[1771674526901,0.09633566,68157.0,68149.0,0.07336862]
[1771674527400,0.07336013,68157.0,68149.0,0.07336862]
[1771674527627,0.07336013,68157.0,68150.0,0.03752907]
[1771674527810,0.07347801,68158.0,68150.0,0.03752907]
[1771674528009,0.07336003,68157.0,68150.0,0.03752907]
[1771674528374,0.07336111,68156.0,68150.0,0.03752907]
[1771674529212,0.07336029,68157.0,68150.0,0.03752907]
[1771674529779,0.07336138,68156.0,68150.0,0.03752907]
[1771674530776,0.09668257,68155.0,68147.0,0.0733707]
[1771674530970,0.02332033,68155.0,68147.0,0.0733707]
[1771674531367,0.02332033,68156.0,68144.0,0.0003433]
[1771674531612,0.02332033,68146.0,68144.0,0.0003433]
[1771674532533,0.02332033,68148.0,68144.0,0.0003433]
[1771674532747,0.02332033,68148.0,68144.0,0.07371721]
[1771674533045,0.07336662,68151.0,68144.0,0.0003433]
[1771674533809,0.07336763,68150.0,68144.0,0.0003433]
[1771674538912,0.09668938,68149.0,68144.0,0.0003433]
[1771674539088,0.02332033,68149.0,68144.0,0.0003433]
[1771674541030,0.0733679,68150.0,68145.0,0.03752907]
[1771674542806,0.07336617,68152.0,68145.0,0.03752907]
[1771674542977,0.07336336,68154.0,68146.0,0.0733711]
[1771674543178,0.0002,68157.0,68149.0,0.03752907]
[1771674543395,0.02313553,68160.0,68145.0,0.03520554]
[1771674543601,0.0002,68161.0,68152.0,0.05796897]
[1771674544110,0.0002,68161.0,68153.0,0.0733623]
[1771674544370,0.0002,68161.0,68154.0,0.07336257]
[1771674544746,0.0002,68161.0,68155.0,0.07336123]
[1771674545314,0.19917553,68163.0,68156.0,0.0733609]
[1771674545539,0.1762,68163.0,68156.0,0.0733609]
[1771674545932,0.24955394,68163.0,68155.0,0.07336202]
[1771674546673,0.0002,68157.0,68155.0,0.07336202]
[1771674546881,0.24955394,68163.0,68155.0,0.07336202]
[1771674547298,0.1762,68163.0,68156.0,0.07336108]
[1771674547483,0.1762,68163.0,68153.0,0.02276343]
[1771674547622,0.1762,68163.0,68158.0,0.07335792]
[1771674548648,0.24955371,68163.0,68155.0,0.07336194]
[1771674549693,0.07335483,68162.0,68154.0,0.073363]
[1771674551217,0.07335581,68161.0,68153.0,0.07336367]
[1771674551458,0.1762,68163.0,68150.0,0.07352748]
[1771674551459,0.09591915,68159.0,68150.0,0.07352748]
[1771674551623,0.07335978,68158.0,68150.0,0.07352748]
[1771674554313,0.07335978,68158.0,68154.0,0.00022]
[1771674554720,0.09591851,68159.0,68154.0,0.00022]
[1771674562326,0.07335908,68158.0,68154.0,0.00022]
[1771674562531,0.09591941,68158.0,68154.0,0.00022]
[1771674565504,0.09591941,68158.0,68151.0,0.07233323]
[1771674565701,0.07335908,68158.0,68150.0,0.07352728]
[1771674565886,0.02256033,68157.0,68150.0,0.07352728]
[1771674568147,0.02256033,68157.0,68154.0,0.00022]
[1771674572671,0.09592058,68157.0,68154.0,0.00022]
[1771674572883,0.09592058,68157.0,68150.0,0.00016]
[1771674574734,0.09592058,68157.0,68150.0,0.00038]
[1771674576362,0.09592058,68157.0,68150.0,0.07374746]
[1771674578562,0.07335911,68158.0,68150.0,0.07374746]
[1771674581692,0.07336133,68156.0,68150.0,0.0002354]
[1771674582878,0.07336007,68157.0,68150.0,0.0002354]
[1771674584059,0.09592214,68158.0,68150.0,0.07360261]
[1771674584655,0.07336109,68158.0,68150.0,0.07360261]
[1771674584866,0.07336109,68158.0,68143.0,0.00022]
[1771674584867,0.02256105,68150.0,68140.0,0.00038]
[1771674585060,0.07337202,68146.0,68142.0,0.00033695]
[1771674585287,0.07337088,68147.0,68142.0,0.00033695]
[1771674585491,0.07337223,68146.0,68142.0,0.00033695]
[1771674587673,0.07337297,68145.0,68142.0,0.00033695]
[1771674587909,0.07337297,68145.0,68143.0,0.00022]
[1771674588561,0.07337403,68144.0,68143.0,0.00022]
[1771674588737,0.07337403,68144.0,68142.0,0.00033695]
[1771674588888,0.0733751,68143.0,68137.0,0.0003433]
[1771674589091,0.07337403,68144.0,68137.0,0.0003433]
[1771674589693,0.31604687,68147.0,68137.0,0.0003433]
[1771674590529,0.07337462,68144.0,68137.0,0.0003433]
[1771674591087,0.07337462,68144.0,68137.0,0.0737248]
[1771674592399,0.07337187,68146.0,68137.0,0.0737248]
[1771674592602,0.07337334,68145.0,68137.0,0.0737248]
[1771674593707,0.07346346,68146.0,68137.0,0.0737248]
[1771674594322,0.07346346,68146.0,68138.0,0.0733802]
[1771674597078,0.07346346,68146.0,68138.0,0.0732356]
[1771674598543,0.02256105,68145.0,68136.0,0.00022]
[1771674598734,0.07337403,68144.0,68136.0,0.07360255]
[1771674599753,0.07337544,68143.0,68136.0,0.00022]
[1771674602516,0.0002,68144.0,68136.0,0.00022]
[1771674602860,0.07337113,68147.0,68137.0,0.03507071]
[1771674603061,0.07337113,68147.0,68137.0,0.0351623]
[1771674603278,0.07337261,68146.0,68138.0,0.07337978]
[1771674604467,0.07337297,68145.0,68138.0,0.07337978]
[1771674604712,0.07337297,68145.0,68137.0,0.07730181]
[1771674604904,0.07337297,68145.0,68138.0,0.07338029]
[1771674605107,0.31619272,68150.0,68144.0,0.07337327]
[1771674605108,0.00016,68150.0,68144.0,0.07337327]
[1771674605328,0.00016,68150.0,68140.0,0.03507071]
[1771674605603,0.00016,68150.0,68143.0,0.07337463]
[1771674605965,0.07352778,68150.0,68143.0,0.07337463]
[1771674606370,0.07352778,68150.0,68142.0,0.07337588]
[1771674606706,0.07336877,68149.0,68141.0,0.09617815]
[1771674608216,0.07356877,68149.0,68141.0,0.09617815]
[1771674610737,0.07356877,68149.0,68141.0,0.09603358]
[1771674612616,0.07356877,68149.0,68141.0,0.07337726]
[1771674614343,0.07356877,68149.0,68142.0,0.07337608]
[1771674619671,0.07337027,68148.0,68140.0,0.10844703]
[1771674619816,0.07356877,68149.0,68140.0,0.07337632]
[1771674621610,0.07356877,68149.0,68141.0,0.07337683]
[1771674621763,0.0002,68149.0,68139.0,0.07337919]
[1771674621970,0.07336972,68148.0,68140.0,0.0733783]
[1771674622396,0.07337081,68147.0,68140.0,0.0733783]
[1771674622976,0.07337013,68148.0,68140.0,0.0733783]
[1771674625035,0.0735707,68149.0,68140.0,0.0733783]
[1771674625189,0.07336974,68148.0,68141.0,0.07337648]
[1771674625391,0.0735707,68149.0,68142.0,0.07337602]
[1771674626548,0.0002,68149.0,68143.0,0.073375]
[1771674627624,0.0002,68149.0,68144.0,0.073374]
[1771674627845,0.0002,68149.0,68143.0,0.07337488]
[1771674630331,0.0001233,68154.0,68143.0,0.0316086]
[1771674630667,0.0001233,68154.0,68148.0,0.07336943]
[1771674631655,0.0001233,68154.0,68147.0,0.07337042]
[1771674633457,0.07348697,68154.0,68147.0,0.07337069]
[1771674634378,0.07368697,68154.0,68147.0,0.07337069]
[1771674636354,0.07368697,68154.0,68147.0,0.04399177]
[1771674639089,0.07368697,68154.0,68146.0,0.07337176]
[1771674640232,0.07368697,68154.0,68145.0,0.07337088]
[1771674640233,0.0003233,68154.0,68147.0,0.07336992]
[1771674640740,0.07368657,68154.0,68147.0,0.07358992]
[1771674644144,0.0002,68157.0,68148.0,0.07336972]
[1771674644364,0.0002,68157.0,68148.0,0.09787316]
[1771674644547,0.07336118,68156.0,68148.0,0.09787316]
[1771674644902,0.07336118,68156.0,68148.0,0.07322518]
[1771674646231,0.07336118,68156.0,68148.0,0.07336972]
[1771674648386,0.07336118,68156.0,68149.0,0.0733686]
[1771674648587,0.0002,68157.0,68147.0,0.03169761]
[1771674648806,0.07356007,68157.0,68147.0,0.03169761]
[1771674649193,0.0002,68157.0,68153.0,1e-08]
[1771674650198,0.17644,68159.0,68149.0,0.31797557]
[1771674650361,0.17644,68159.0,68151.0,0.07336649]
[1771674650561,0.07348009,68161.0,68153.0,0.02450344]
[1771674650761,0.07348009,68161.0,68150.0,0.00016]
[1771674650762,0.0001233,68161.0,68150.0,0.00016]
[1771674650964,0.0001233,68161.0,68152.0,0.07336335]
[1771674651662,0.07335683,68160.0,68153.0,0.07336386]
[1771674652449,0.07335683,68160.0,68153.0,0.07321932]
[1771674653812,0.0001233,68161.0,68151.0,0.07336649]
[1771674654162,0.0002,68163.0,68157.0,0.0733598]
[1771674654531,0.0002,68160.0,68157.0,0.0733598]
[1771674654732,0.0002,68163.0,68157.0,0.0733598]
[1771674655436,0.0002,68163.0,68158.0,0.07335873]
[1771674655709,0.0002,68163.0,68159.0,0.07335749]
[1771674656719,0.0005903,68163.0,68159.0,0.07335749]
[1771674658655,0.14261489,68167.0,68154.0,0.00570172]
[1771674658986,0.1427122,68167.0,68162.0,0.07335359]
[1771674659168,0.24753171,68167.0,68157.0,0.0733591]
[1771674659407,0.07335035,68166.0,68157.0,0.0733591]
[1771674659646,0.07335035,68166.0,68156.0,0.07335904]
[1771674659858,0.1427122,68167.0,68155.0,0.29344875]